[Event "HUN-ch Rapid 2019"]
[Site "Ajka"]
[Date "2019.07.19"]
[Round "1.4"]
[White "Papp, Gabor"]
[Black "Biro, Zsolt"]
[Result "1-0"]
[ECO "C05"]
[WhiteElo "2587"]
[BlackElo "2003"]
[Annotator "ChessBase"]
[PlyCount "49"]
[EventDate "2019.07.18"]
[EventType "swiss"]
[EventCountry "HUN"]
[SourceTitle "playchess.com"]
[Source "ChessBase"]
[SourceQuality "1"]
[TimeControl "1200+5"]

1. e4 {[%emt 0:00:03]} e6 {[%emt 0:00:03]} 2. d4 {[%emt 0:00:03]} d5 {[%emt 0:00:01]} 3. Nd2 {[%emt 0:00:03]} Nf6 {[%emt 0:00:34]} 4. e5 {[%emt 0:00:04]} Nfd7 {[%emt 0:00:01]} 5. Bd3 {[%emt 0:00:01]} c5 {[%emt 0:00:01]} 6. c3 {[%emt 0:00:01]} Nc6 {[%emt 0:00:02]} 7. Ne2 {[%emt 0:00:02]} Be7 {[%emt 0:00:25]} 8. O-O {[%emt 0:00:08]} a6 {[%emt 0:00:22]} 9. f4 {[%emt 0:00:07]} b5 {[%emt 0:00:18]} 10. Nf3 {[%emt 0:00:15]} Qb6 {[%emt 0:00:17]} 11. Be3 {[%emt 0:00:09]} a5 {[%emt 0:01:49]} 12. f5 {[%emt 0:00:09]} cxd4 {[%emt 0:00:12]} 13. cxd4 {[%emt 0:00:34]} Ndxe5 {[%emt 0:00:29]} 14. dxe5 {[%emt 0:01:28]} Qxe3+ {[%emt 0:00:07]} 15. Kh1 {[%emt 0:00:02]} Rb8 {[%emt 0:01:01]} 16. Rc1 {[%emt 0:00:18]} Bd7 {[%emt 0:00:56]} 17. f6 {[%emt 0:00:25]} gxf6 {[%emt 0:00:17]} 18. exf6 {[%emt 0:00:02]} Bxf6 {[%emt 0:00:32]} 19. Ng3 {[%emt 0:00:05]} h5 {[%emt 0:00:45]} 20. Nf5 {[%emt 0:00:30]} Qb6 {[%emt 0:00:46]} 21. Qe1 {[%emt 0:00:39]} Kf8 {[%emt 0:00:35]} 22. Nd6 {[%emt 0:01:15]} Nb4 {[%emt 0:00:12]} 23. Ne5 {[%emt 0:00:21]} Bxe5 {[%emt 0:05:20]} 24. Rxf7+ {[%emt 0:00:20]} Kg8 {[%emt 0:00:01]} 25. Qxe5 {[%emt 0:00:08]} 1-0

[Event "HUN-ch Rapid 2019"]
[Site "Ajka"]
[Date "2019.07.19"]
[Round "1.5"]
[White "Paksa, Rudolf"]
[Black "Hera, Imre Jr."]
[Result "0-1"]
[ECO "B00"]
[WhiteElo "2084"]
[BlackElo "2610"]
[Annotator "RC"]
[PlyCount "46"]
[EventDate "2019.07.18"]
[EventType "swiss"]
[EventCountry "HUN"]
[SourceTitle "playchess.com"]
[Source "ChessBase"]
[SourceQuality "1"]
[TimeControl "1200+5"]

1. e4 {[%emt 0:00:04]} Nc6 {[%emt 0:00:02]} 2. Nf3 {[%emt 0:00:10]} d6 {[%emt 0:00:02]} 3. d4 {[%emt 0:00:04]} Nf6 {[%emt 0:00:02]} 4. Nc3 {[%emt 0:00:02]} g6 {[%emt 0:00:02]} 5. h3 {[%emt 0:00:05]} Bg7 {[%emt 0:00:02]} 6. Be3 {[%emt 0:00:02]} O-O {[%emt 0:00:08]} 7. Qd2 {[%emt 0:00:01]} a6 {[%emt 0:00:13]} 8. Bh6 {[%emt 0:00:08]} b5 {[%emt 0:00:04]} 9. Bxg7 {[%emt 0:00:03]} Kxg7 {[%emt 0:00:02]} 10. a3 {[%emt 0:00:11]} e5 {[%emt 0:00:20]} 11. O-O-O {[%emt 0:00:22]} Bb7 {[%emt 0:00:21]} 12. Qe3 {[%emt 0:00:24]} exd4 {[%emt 0:01:21]} 13. Nxd4 {[%emt 0:00:03]} Re8 {[%emt 0:00:01]} 14. f3 {[%emt 0:00:35]} Qe7 {[%emt 0:01:00]} 15. Bd3 {[%emt 0:00:21]} Ne5 {[%emt 0:00:18]} 16. Rhe1 {[%emt 0:00:22]} c5 {[%emt 0:00:06]} 17. f4 {[%emt 0:00:39]} cxd4 {[%emt 0:00:21]} 18. Qxd4 {[%emt 0:00:04]} Nxd3+ {[%emt 0:00:16]} 19. cxd3 {[%emt 0:00:02]} Qc7 {[%emt 0:00:21]} 20. e5 {[%emt 0:00:19]} dxe5 {[%emt 0:00:31]} 21. fxe5 {[%emt 0:00:01]} Nd5 {[%emt 0:00:08]} 22. e6+ {[%emt 0:00:14]} f6 {[%emt 0:00:05]} 23. Rf1 {[%emt 0:00:04]} Rxe6 {[%emt 0:00:05]} 0-1

[Event "HUN-ch Rapid 2019"]
[Site "Ajka"]
[Date "2019.07.19"]
[Round "1.7"]
[White "Fehervari, Istvan"]
[Black "Ruck, Robert"]
[Result "0-1"]
[ECO "D97"]
[WhiteElo "1959"]
[BlackElo "2524"]
[Annotator "ChessBase"]
[PlyCount "42"]
[EventDate "2019.07.18"]
[EventType "swiss"]
[EventCountry "HUN"]
[SourceTitle "playchess.com"]
[Source "ChessBase"]
[SourceQuality "1"]
[TimeControl "1200+5"]

1. d4 {[%emt 0:00:04]} Nf6 {[%emt 0:00:03]} 2. Nf3 {[%emt 0:00:05]} g6 {[%emt 0:00:02]} 3. c4 {[%emt 0:00:11]} Bg7 {[%emt 0:00:02]} 4. Nc3 {[%emt 0:00:02]} d5 {[%emt 0:00:02]} 5. Qb3 {[%emt 0:00:34]} dxc4 {[%emt 0:00:06]} 6. Qxc4 {[%emt 0:00:02]} O-O {[%emt 0:00:03]} 7. e4 {[%emt 0:00:08]} a6 {[%emt 0:00:24]} 8. Qd3 {[%emt 0:00:44]} b5 {[%emt 0:00:46]} 9. Be2 {[%emt 0:00:25]} Bb7 {[%emt 0:00:04]} 10. a3 {[%emt 0:00:40]} c5 {[%emt 0:00:06]} 11. dxc5 {[%emt 0:01:05]} Qxd3 {[%emt 0:01:04]} 12. Bxd3 {[%emt 0:00:02]} Nbd7 {[%emt 0:00:02]} 13. O-O {[%emt 0:00:52]} Nxc5 {[%emt 0:00:03]} 14. Bc2 {[%emt 0:00:14]} Nfxe4 {[%emt 0:00:21]} 15. Nxe4 {[%emt 0:00:07]} Bxe4 {[%emt 0:00:05]} 16. Bxe4 {[%emt 0:00:10]} Nxe4 {[%emt 0:00:02]} 17. Re1 {[%emt 0:00:09]} f5 {[%emt 0:01:48]} 18. Rb1 {[%emt 0:00:38]} Rac8 {[%emt 0:00:20]} 19. Ng5 {[%emt 0:00:53]} Rxc1 {[%emt 0:00:33]} 20. Nxe4 {[%emt 0:00:10]} Rxe1+ {[%emt 0:00:04]} 21. Rxe1 {[%emt 0:00:06]} fxe4 {[%emt 0:00:01]} 0-1

[Event "HUN-ch Rapid 2019"]
[Site "Ajka"]
[Date "2019.07.19"]
[Round "1.8"]
[White "Prohaszka, Peter"]
[Black "Palla, Gyorgy"]
[Result "1-0"]
[ECO "D02"]
[WhiteElo "2598"]
[BlackElo "1992"]
[Annotator "RC"]
[PlyCount "87"]
[EventDate "2019.07.18"]
[EventType "swiss"]
[EventCountry "HUN"]
[SourceTitle "playchess.com"]
[Source "ChessBase"]
[SourceQuality "1"]
[TimeControl "1200+5"]

1. d4 {[%emt 0:00:04]} d5 {[%emt 0:00:06]} 2. Nf3 {[%emt 0:00:03]} Nf6 {[%emt 0:00:05]} 3. c4 {[%emt 0:00:01]} c6 {[%emt 0:00:11]} 4. g3 {[%emt 0:00:08]} Bf5 {[%emt 0:00:35]} 5. Bg2 {[%emt 0:00:03]} Nbd7 {[%emt 0:00:15]} 6. Qb3 {[%emt 0:00:42]} Qb6 {[%emt 0:00:59]} 7. O-O {[%emt 0:00:06]} e6 {[%emt 0:00:25]} 8. Nc3 {[%emt 0:00:20]} Qxb3 {[%emt 0:00:32]} 9. axb3 {[%emt 0:00:01]} Bc2 {[%emt 0:00:36]} 10. Nd2 {[%emt 0:00:17]} Bd6 {[%emt 0:00:34]} 11. c5 {[%emt 0:01:28]} Bc7 {[%emt 0:00:03]} 12. b4 {[%emt 0:00:01]} e5 {[%emt 0:00:24]} 13. Nf3 {[%emt 0:02:19]} e4 {[%emt 0:00:51]} 14. Nh4 {[%emt 0:01:24]} O-O {[%emt 0:00:47]} 15. Nf5 {[%emt 0:00:12]} Bb3 {[%emt 0:01:10]} 16. b5 {[%emt 0:02:23]} Rfe8 {[%emt 0:01:47]} 17. Bf4 {[%emt 0:02:20]} Bxf4 {[%emt 0:01:27]} 18. gxf4 {[%emt 0:00:01]} Bc4 {[%emt 0:01:03]} 19. Nd6 {[%emt 0:00:23]} Re6 {[%emt 0:00:41]} 20. b6 {[%emt 0:03:50]} Ba6 {[%emt 0:01:23]} 21. bxa7 {[%emt 0:00:26]} Nh5 {[%emt 0:00:14]} 22. f5 {[%emt 0:00:26]} Rh6 {[%emt 0:00:59]} 23. f4 {[%emt 0:01:20]} Rxa7 {[%emt 0:00:32]} 24. b4 {[%emt 0:00:07]} Ra8 {[%emt 0:00:26]} 25. b5 {[%emt 0:00:15]} cxb5 {[%emt 0:00:14]} 26. Nxd5 {[%emt 0:00:06]} Rxd6 {[%emt 0:00:32]} 27. cxd6 {[%emt 0:00:01]} Nhf6 {[%emt 0:00:19]} 28. Nc7 {[%emt 0:00:05]} Rd8 {[%emt 0:00:34]} 29. Nxa6 {[%emt 0:00:04]} bxa6 {[%emt 0:00:01]} 30. Rxa6 {[%emt 0:00:01]} Rb8 {[%emt 0:00:27]} 31. Rfa1 {[%emt 0:00:03]} g6 {[%emt 0:00:17]} 32. fxg6 {[%emt 0:00:07]} hxg6 {[%emt 0:00:02]} 33. Ra8 {[%emt 0:00:01]} Rxa8 {[%emt 0:00:15]} 34. Rxa8+ {[%emt 0:00:02]} Kg7 {[%emt 0:00:01]} 35. Bh3 {[%emt 0:00:01]} Nb6 {[%emt 0:00:03]} 36. Rb8 {[%emt 0:00:02]} Nbd5 {[%emt 0:00:04]} 37. d7 {[%emt 0:00:05]} Nxd7 {[%emt 0:00:08]} 38. Bxd7 {[%emt 0:00:01]} Nxf4 {[%emt 0:00:01]} 39. Kf1 {[%emt 0:00:01]} Nd5 {[%emt 0:00:08]} 40. Bxb5 {[%emt 0:00:03]} f5 {[%emt 0:00:04]} 41. Kf2 {[%emt 0:00:04]} f4 {[%emt 0:00:03]} 42. Bc4 {[%emt 0:00:01]} Nf6 {[%emt 0:00:06]} 43. Be6 {[%emt 0:00:04]} g5 {[%emt 0:00:05]} 44. h3 {[%emt 0:00:03]} 1-0

[Event "HUN-ch Rapid 2019"]
[Site "Ajka"]
[Date "2019.07.19"]
[Round "1.10"]
[White "Czebe, Attila"]
[Black "Kovacsy, Barnabas"]
[Result "1-0"]
[ECO "A05"]
[WhiteElo "2436"]
[BlackElo "2087"]
[Annotator "ChessBase"]
[PlyCount "209"]
[EventDate "2019.07.18"]
[EventType "swiss"]
[EventCountry "HUN"]
[SourceTitle "playchess.com"]
[Source "ChessBase"]
[SourceQuality "1"]
[TimeControl "1200+5"]

1. Nf3 {[%emt 0:02:24]} Nf6 {[%emt 0:00:02]} 2. g3 {[%emt 0:00:01]} g6 {[%emt 0:00:02]} 3. b3 {[%emt 0:00:04]} Bg7 {[%emt 0:00:14]} 4. Bb2 {[%emt 0:00:02]} O-O {[%emt 0:00:08]} 5. Bg2 {[%emt 0:00:01]} d5 {[%emt 0:00:29]} 6. O-O {[%emt 0:00:05]} c5 {[%emt 0:01:22]} 7. Qc1 {[%emt 0:00:02]} Nc6 {[%emt 0:00:24]} 8. Ne5 {[%emt 0:00:01]} Nxe5 {[%emt 0:00:24]} 9. Bxe5 {[%emt 0:00:03]} Bd7 {[%emt 0:00:00]} 10. c4 {[%emt 0:00:36]} Bc6 {[%emt 0:04:03]} 11. Nc3 {[%emt 0:00:05]} e6 {[%emt 0:01:31]} 12. cxd5 {[%emt 0:00:17]} exd5 {[%emt 0:00:14]} 13. d4 {[%emt 0:00:12]} cxd4 {[%emt 0:01:08]} 14. Bxd4 {[%emt 0:00:05]} Ne4 {[%emt 0:00:16]} 15. Bxg7 {[%emt 0:00:22]} Kxg7 {[%emt 0:00:03]} 16. Nxe4 {[%emt 0:03:14]} dxe4 {[%emt 0:00:03]} 17. Qe3 {[%emt 0:00:01]} Qb6 {[%emt 0:01:19]} 18. Qc3+ {[%emt 0:00:11]} Kg8 {[%emt 0:00:46]} 19. Rfd1 {[%emt 0:00:02]} Rad8 {[%emt 0:01:03]} 20. e3 {[%emt 0:00:55]} Rxd1+ {[%emt 0:00:57]} 21. Rxd1 {[%emt 0:00:02]} Rd8 {[%emt 0:00:22]} 22. Rxd8+ {[%emt 0:00:08]} Qxd8 {[%emt 0:00:02]} 23. Qd4 {[%emt 0:00:08]} Qa5 {[%emt 0:01:45]} 24. a4 {[%emt 0:00:01]} Qd5 {[%emt 0:00:18]} 25. Qxd5 {[%emt 0:00:32]} Bxd5 {[%emt 0:00:02]} 26. b4 {[%emt 0:00:01]} b6 {[%emt 0:00:08]} 27. Kf1 {[%emt 0:00:53]} a5 {[%emt 0:00:09]} 28. bxa5 {[%emt 0:00:01]} bxa5 {[%emt 0:00:01]} 29. Ke1 {[%emt 0:00:02]} Bc6 {[%emt 0:00:24]} 30. Kd2 {[%emt 0:00:01]} f5 {[%emt 0:00:08]} 31. Kc3 {[%emt 0:00:09]} Bxa4 {[%emt 0:00:09]} 32. Bf1 {[%emt 0:00:01]} Kg7 {[%emt 0:00:43]} 33. h4 {[%emt 0:00:07]} Kf6 {[%emt 0:00:08]} 34. Kd4 {[%emt 0:00:16]} Bc2 {[%emt 0:00:29]} 35. Bb5 {[%emt 0:00:04]} h6 {[%emt 0:00:19]} 36. Kc3 {[%emt 0:00:03]} Bd1 {[%emt 0:00:14]} 37. Kd2 {[%emt 0:00:08]} Bf3 {[%emt 0:00:10]} 38. Kc3 {[%emt 0:00:05]} Ke5 {[%emt 0:00:09]} 39. Be8 {[%emt 0:00:10]} g5 {[%emt 0:00:07]} 40. hxg5 {[%emt 0:00:01]} hxg5 {[%emt 0:00:01]} 41. Kc4 {[%emt 0:00:01]} Be2+ {[%emt 0:00:04]} 42. Kc5 {[%emt 0:00:02]} Bd1 {[%emt 0:00:43]} 43. Bd7 {[%emt 0:00:01]} f4 {[%emt 0:00:05]} 44. Kb5 {[%emt 0:01:08]} a4 {[%emt 0:00:44]} 45. Kb4 {[%emt 0:00:03]} fxe3 {[%emt 0:00:17]} 46. fxe3 {[%emt 0:00:01]} Bc2 {[%emt 0:00:42]} 47. Bc6 {[%emt 0:00:10]} Bb3 {[%emt 0:00:13]} 48. Bb5 {[%emt 0:00:15]} Kf5 {[%emt 0:00:28]} 49. Be2 {[%emt 0:00:22]} Bc2 {[%emt 0:00:09]} 50. Bh5 {[%emt 0:00:22]} Bb3 {[%emt 0:00:04]} 51. Ka3 {[%emt 0:00:23]} Bc2 {[%emt 0:00:03]} 52. Be2 {[%emt 0:00:28]} Bb3 {[%emt 0:00:10]} 53. Kb2 {[%emt 0:00:28]} Ke5 {[%emt 0:00:10]} 54. Kc3 {[%emt 0:00:01]} Be6 {[%emt 0:00:03]} 55. Kb4 {[%emt 0:00:02]} Bb3 {[%emt 0:00:03]} 56. Bg4 {[%emt 0:00:03]} Be6 {[%emt 0:00:12]} 57. Bh5 {[%emt 0:00:29]} Bb3 {[%emt 0:00:06]} 58. Bg6 {[%emt 0:00:01]} Bc2 {[%emt 0:00:02]} 59. Be8 {[%emt 0:00:05]} Bb3 {[%emt 0:00:03]} 60. Bd7 {[%emt 0:00:01]} Bc2 {[%emt 0:00:04]} 61. Bg4 {[%emt 0:00:53]} Bb3 {[%emt 0:00:03]} 62. Kc3 {[%emt 0:00:02]} Bd5 {[%emt 0:00:17]} 63. Kb2 {[%emt 0:00:15]} Bc4 {[%emt 0:00:04]} 64. Bd1 {[%emt 0:00:12]} Bd3 {[%emt 0:00:09]} 65. Bxa4 {[%emt 0:00:09]} Be2 {[%emt 0:00:01]} 66. Kc3 {[%emt 0:00:02]} Bg4 {[%emt 0:00:02]} 67. Kc4 {[%emt 0:00:07]} Be2+ {[%emt 0:00:02]} 68. Kc5 {[%emt 0:00:01]} Bg4 {[%emt 0:00:02]} 69. Be8 {[%emt 0:00:08]} Be6 {[%emt 0:00:04]} 70. Kc6 {[%emt 0:00:08]} Bf5 {[%emt 0:00:09]} 71. Bh5 {[%emt 0:00:18]} Be6 {[%emt 0:00:07]} 72. Be2 {[%emt 0:00:02]} Bf5 {[%emt 0:00:06]} 73. Kc7 {[%emt 0:00:13]} Be6 {[%emt 0:00:07]} 74. Kd8 {[%emt 0:00:03]} Kf6 {[%emt 0:00:09]} 75. Bb5 {[%emt 0:00:07]} Kf5 {[%emt 0:00:06]} 76. Ke7 {[%emt 0:00:02]} Bc8 {[%emt 0:00:01]} 77. Be2 {[%emt 0:00:02]} Bb7 {[%emt 0:00:03]} 78. Kf7 {[%emt 0:00:06]} Bd5+ {[%emt 0:00:07]} 79. Kg7 {[%emt 0:00:01]} Be6 {[%emt 0:00:06]} 80. g4+ {[%emt 0:00:04]} Ke5 {[%emt 0:00:01]} 81. Kg6 {[%emt 0:00:00]} Kd5 {[%emt 0:00:06]} 82. Kxg5 {[%emt 0:00:02]} Ke5 {[%emt 0:00:00]} 83. Bb5 {[%emt 0:00:05]} Bc8 {[%emt 0:00:08]} 84. Be8 {[%emt 0:00:01]} Be6 {[%emt 0:00:01]} 85. Bg6 {[%emt 0:00:02]} Bd7 {[%emt 0:00:04]} 86. Bf5 {[%emt 0:00:02]} Be8 {[%emt 0:00:03]} 87. Kh4 {[%emt 0:00:06]} Bc6 {[%emt 0:00:15]} 88. Kg3 {[%emt 0:00:02]} Bb7 {[%emt 0:00:03]} 89. Bd7 {[%emt 0:00:04]} Bd5 {[%emt 0:00:02]} 90. g5 {[%emt 0:00:05]} Bf7 {[%emt 0:00:06]} 91. Kh4 {[%emt 0:00:07]} Bg6 {[%emt 0:00:04]} 92. Kg4 {[%emt 0:00:01]} Bf7 {[%emt 0:00:14]} 93. Bf5 {[%emt 0:00:04]} Be8 {[%emt 0:00:05]} 94. Bh7 {[%emt 0:00:11]} Bc6 {[%emt 0:00:02]} 95. Kh5 {[%emt 0:00:04]} Be8+ {[%emt 0:00:05]} 96. Kh6 {[%emt 0:00:02]} Kd5 {[%emt 0:00:07]} 97. g6 {[%emt 0:00:18]} Kc4 {[%emt 0:00:07]} 98. g7 {[%emt 0:00:02]} Bf7 {[%emt 0:00:01]} 99. Bxe4 {[%emt 0:00:02]} Kc3 {[%emt 0:00:01]} 100. Bg6 {[%emt 0:00:08]} Bg8 {[%emt 0:00:01]} 101. Kg5 {[%emt 0:00:01]} Kc4 {[%emt 0:00:02]} 102. Kf6 {[%emt 0:00:03]} Kc5 {[%emt 0:00:01]} 103. e4 {[%emt 0:00:01]} Kc6 {[%emt 0:00:01]} 104. e5 {[%emt 0:00:01]} Kd7 {[%emt 0:00:01]} 105. e6+ 1-0

[Event "HUN-ch Rapid 2019"]
[Site "Ajka"]
[Date "2019.07.19"]
[Round "1.13"]
[White "Csiszar, Viktoria"]
[Black "Horvath, Adam"]
[Result "0-1"]
[ECO "B24"]
[WhiteElo "1958"]
[BlackElo "2517"]
[Annotator "ChessBase"]
[PlyCount "52"]
[EventDate "2019.07.18"]
[EventType "swiss"]
[EventCountry "HUN"]
[SourceTitle "playchess.com"]
[Source "ChessBase"]
[SourceQuality "1"]
[TimeControl "1200+5"]

1. e4 {[%emt 0:00:05]} c5 {[%emt 0:00:01]} 2. Nc3 {[%emt 0:00:03]} Nc6 {[%emt 0:00:03]} 3. g3 {[%emt 0:00:09]} g6 {[%emt 0:00:08]} 4. Bg2 {[%emt 0:00:03]} Bg7 {[%emt 0:00:01]} 5. d3 {[%emt 0:00:07]} e6 {[%emt 0:00:02]} 6. f4 {[%emt 0:00:12]} Nge7 {[%emt 0:00:03]} 7. Nf3 {[%emt 0:00:05]} d5 {[%emt 0:00:16]} 8. O-O {[%emt 0:00:38]} a6 {[%emt 0:00:12]} 9. Kh1 {[%emt 0:02:34]} b5 {[%emt 0:00:09]} 10. f5 {[%emt 0:04:45]} gxf5 {[%emt 0:00:58]} 11. exd5 {[%emt 0:00:28]} exd5 {[%emt 0:00:18]} 12. Ng5 {[%emt 0:03:07]} h6 {[%emt 0:00:28]} 13. Qe2 {[%emt 0:03:30]} Nd4 {[%emt 0:00:59]} 14. Qd2 {[%emt 0:01:46]} hxg5 {[%emt 0:00:08]} 15. Qxg5 {[%emt 0:00:06]} Ne6 {[%emt 0:00:03]} 16. Qd2 {[%emt 0:00:22]} Bb7 {[%emt 0:00:01]} 17. Qf2 {[%emt 0:00:50]} Qd7 {[%emt 0:00:13]} 18. a4 {[%emt 0:00:32]} b4 {[%emt 0:00:03]} 19. Ne2 {[%emt 0:00:02]} O-O-O {[%emt 0:00:29]} 20. c3 {[%emt 0:00:05]} b3 {[%emt 0:01:07]} 21. Ra3 {[%emt 0:00:02]} c4 {[%emt 0:00:33]} 22. Qa7 {[%emt 0:00:45]} Nc6 {[%emt 0:00:29]} 23. Qb6 {[%emt 0:00:17]} Bf8 {[%emt 0:00:06]} 24. dxc4 {[%emt 0:00:21]} dxc4 {[%emt 0:00:09]} 25. Be3 {[%emt 0:00:12]} Bxa3 {[%emt 0:00:24]} 26. bxa3 {[%emt 0:00:04]} Qc7 {[%emt 0:00:02]} 0-1

[Event "HUN-ch Rapid 2019"]
[Site "Ajka"]
[Date "2019.07.19"]
[Round "1.14"]
[White "Mihok, Oliver"]
[Black "Pais, Nimrod"]
[Result "1-0"]
[ECO "C10"]
[WhiteElo "2550"]
[BlackElo "1906"]
[Annotator "ChessBase"]
[PlyCount "40"]
[EventDate "2019.07.18"]
[EventType "swiss"]
[EventCountry "HUN"]
[SourceTitle "playchess.com"]
[Source "ChessBase"]
[SourceQuality "1"]
[TimeControl "1200+5"]

1. e4 {[%emt 0:00:04]} e6 {[%emt 0:00:03]} 2. d4 {[%emt 0:00:04]} d5 {[%emt 0:00:02]} 3. Nc3 {[%emt 0:00:01]} dxe4 {[%emt 0:00:03]} 4. Nxe4 {[%emt 0:00:02]} Bd7 {[%emt 0:00:02]} 5. Nf3 {[%emt 0:00:41]} Bc6 {[%emt 0:00:06]} 6. Bd3 {[%emt 0:00:03]} Nd7 {[%emt 0:00:11]} 7. c3 {[%emt 0:00:08]} Be7 {[%emt 0:00:41]} 8. O-O {[%emt 0:00:57]} Ngf6 {[%emt 0:00:06]} 9. Nxf6+ {[%emt 0:00:03]} Bxf6 {[%emt 0:00:48]} 10. Bf4 {[%emt 0:00:18]} O-O {[%emt 0:00:37]} 11. Re1 {[%emt 0:00:35]} h6 {[%emt 0:01:00]} 12. Bc2 {[%emt 0:00:27]} Bg5 {[%emt 0:02:04]} 13. Nxg5 {[%emt 0:00:38]} hxg5 {[%emt 0:00:07]} 14. Qh5 {[%emt 0:00:02]} Nf6 {[%emt 0:00:18]} 15. Qxg5 {[%emt 0:00:06]} Qd5 {[%emt 0:00:58]} 16. Re5 {[%emt 0:01:39]} Qd8 {[%emt 0:00:03]} 17. Qh4 {[%emt 0:00:25]} Re8 {[%emt 0:00:47]} 18. Bg5 {[%emt 0:00:56]} b5 {[%emt 0:03:13]} 19. Rae1 {[%emt 0:00:07]} Bd5 {[%emt 0:00:47]} 20. R1e3 {[%emt 0:00:13]} Re7 {[%emt 0:05:02]} 1-0

[Event "HUN-ch Rapid 2019"]
[Site "Ajka"]
[Date "2019.07.19"]
[Round "1.15"]
[White "Guzs, Laszlo"]
[Black "Horvath, Peter"]
[Result "0-1"]
[ECO "D34"]
[WhiteElo "1945"]
[BlackElo "2418"]
[Annotator "NA"]
[PlyCount "50"]
[EventDate "2019.07.18"]
[EventType "swiss"]
[EventCountry "HUN"]
[SourceTitle "playchess.com"]
[Source "ChessBase"]
[SourceQuality "1"]
[TimeControl "1200+5"]

1. d4 {[%emt 0:00:05]} d5 {[%emt 0:00:05]} 2. Nf3 {[%emt 0:00:05]} Nf6 {[%emt 0:00:05]} 3. g3 {[%emt 0:00:08]} e6 {[%emt 0:00:37]} 4. Bg2 {[%emt 0:00:03]} c5 {[%emt 0:00:20]} 5. O-O {[%emt 0:00:04]} Nc6 {[%emt 0:00:07]} 6. c4 {[%emt 0:01:20]} Be7 {[%emt 0:00:19]} 7. cxd5 {[%emt 0:00:37]} exd5 {[%emt 0:00:04]} 8. Nc3 {[%emt 0:00:10]} O-O {[%emt 0:00:16]} 9. h3 {[%emt 0:00:25]} c4 {[%emt 0:00:58]} 10. Ne5 {[%emt 0:00:54]} Be6 {[%emt 0:01:07]} 11. Be3 {[%emt 0:03:16]} Bb4 {[%emt 0:01:45]} 12. Qa4 {[%emt 0:01:03]} Bxc3 {[%emt 0:00:34]} 13. Nxc6 {[%emt 0:00:31]} bxc6 {[%emt 0:00:03]} 14. bxc3 {[%emt 0:00:02]} Qd7 {[%emt 0:00:18]} 15. Bg5 {[%emt 0:01:21]} Ne4 {[%emt 0:01:07]} 16. Bxe4 {[%emt 0:00:28]} dxe4 {[%emt 0:00:03]} 17. h4 {[%emt 0:01:13]} Bd5 {[%emt 0:00:33]} 18. e3 {[%emt 0:00:26]} h6 {[%emt 0:04:57]} 19. Bf4 {[%emt 0:00:02]} Qh3 {[%emt 0:00:41]} 20. Rfb1 {[%emt 0:02:41]} g5 {[%emt 0:00:02]} 21. hxg5 {[%emt 0:00:21]} hxg5 {[%emt 0:00:01]} 22. Bxg5 {[%emt 0:00:47]} Kg7 {[%emt 0:00:03]} 23. Qd1 {[%emt 0:00:24]} Rh8 {[%emt 0:00:04]} 24. Bh4 {[%emt 0:00:05]} Rxh4 {[%emt 0:00:08]} 25. gxh4 {[%emt 0:00:01]} Rg8 {[%emt 0:00:02]} 0-1

[Event "HUN-ch Rapid 2019"]
[Site "Ajka"]
[Date "2019.07.19"]
[Round "1.16"]
[White "Videki, Sandor"]
[Black "Pasti, Aron"]
[Result "1-0"]
[ECO "C46"]
[WhiteElo "2401"]
[BlackElo "2209"]
[Annotator "ChessBase"]
[PlyCount "129"]
[EventDate "2019.07.18"]
[EventType "swiss"]
[EventCountry "HUN"]
[SourceTitle "playchess.com"]
[Source "ChessBase"]
[SourceQuality "1"]
[TimeControl "1200+5"]

1. e4 {[%emt 0:00:04]} e5 {[%emt 0:00:01]} 2. Nf3 {[%emt 0:00:01]} Nc6 {[%emt 0:00:01]} 3. Nc3 {[%emt 0:00:01]} g6 {[%emt 0:00:01]} 4. d4 {[%emt 0:00:11]} exd4 {[%emt 0:00:01]} 5. Nxd4 {[%emt 0:00:02]} Bg7 {[%emt 0:00:02]} 6. Be3 {[%emt 0:00:31]} Nf6 {[%emt 0:00:02]} 7. Nxc6 {[%emt 0:00:10]} bxc6 {[%emt 0:00:01]} 8. e5 {[%emt 0:00:13]} Ng8 {[%emt 0:00:00]} 9. f4 {[%emt 0:00:12]} Ne7 {[%emt 0:00:02]} 10. Bc4 {[%emt 0:01:27]} d5 {[%emt 0:01:52]} 11. exd6 {[%emt 0:02:05]} cxd6 {[%emt 0:00:23]} 12. Bd4 {[%emt 0:00:44]} O-O {[%emt 0:02:10]} 13. Bxg7 {[%emt 0:00:02]} Kxg7 {[%emt 0:00:02]} 14. Qd4+ {[%emt 0:00:05]} f6 {[%emt 0:00:01]} 15. O-O-O {[%emt 0:00:11]} d5 {[%emt 0:01:24]} 16. Bb3 {[%emt 0:01:00]} Qc7 17. Rhe1 {[%emt 0:00:27]} Bb7 {[%emt 0:02:34]} 18. Na4 {[%emt 0:00:34]} Nf5 {[%emt 0:02:31]} 19. Qf2 {[%emt 0:00:33]} Rae8 {[%emt 0:03:14]} 20. g3 {[%emt 0:00:23]} Bc8 {[%emt 0:00:22]} 21. Rd2 {[%emt 0:00:49]} Nd6 {[%emt 0:00:48]} 22. Nc5 {[%emt 0:00:13]} Bg4 {[%emt 0:01:57]} 23. Rd3 {[%emt 0:01:31]} Rxe1+ {[%emt 0:02:04]} 24. Qxe1 {[%emt 0:00:01]} Re8 {[%emt 0:00:00]} 25. Re3 {[%emt 0:00:09]} Rxe3 {[%emt 0:00:02]} 26. Qxe3 {[%emt 0:00:01]} Kf7 {[%emt 0:00:01]} 27. c3 Qe7 {[%emt 0:00:24]} 28. Qxe7+ {[%emt 0:02:35]} Kxe7 {[%emt 0:00:01]} 29. Kd2 {[%emt 0:00:39]} Nf5 {[%emt 0:00:34]} 30. Ba4 {[%emt 0:00:28]} Kd6 {[%emt 0:00:43]} 31. b4 {[%emt 0:00:20]} h5 {[%emt 0:00:45]} 32. Nb7+ {[%emt 0:00:05]} Kc7 {[%emt 0:00:04]} 33. Na5 {[%emt 0:00:02]} Ne7 {[%emt 0:00:25]} 34. Nb3 {[%emt 0:00:27]} Nf5 {[%emt 0:00:07]} 35. Nd4 {[%emt 0:00:11]} Nxd4 {[%emt 0:00:03]} 36. cxd4 {[%emt 0:00:01]} a6 {[%emt 0:00:11]} 37. Bc2 {[%emt 0:00:03]} g5 {[%emt 0:00:01]} 38. Ke3 {[%emt 0:00:31]} Kd6 {[%emt 0:00:08]} 39. fxg5 {[%emt 0:00:35]} fxg5 {[%emt 0:00:01]} 40. h4 {[%emt 0:00:01]} gxh4 {[%emt 0:00:04]} 41. gxh4 {[%emt 0:00:01]} Kc7 {[%emt 0:00:10]} 42. Bd3 {[%emt 0:00:09]} Kb6 {[%emt 0:00:01]} 43. a3 {[%emt 0:00:41]} a5 {[%emt 0:00:05]} 44. Kf4 {[%emt 0:00:04]} axb4 {[%emt 0:00:00]} 45. axb4 {[%emt 0:00:01]} Bd1 {[%emt 0:00:16]} 46. Ke5 {[%emt 0:00:05]} Bg4 {[%emt 0:00:02]} 47. Kd6 {[%emt 0:00:05]} Bd1 {[%emt 0:00:05]} 48. Bg6 {[%emt 0:00:33]} Kb5 {[%emt 0:00:01]} 49. Be8 {[%emt 0:00:01]} Kxb4 {[%emt 0:00:03]} 50. Bxc6 Kc4 {[%emt 0:00:02]} 51. Ke5 {[%emt 0:00:02]} Bf3 {[%emt 0:00:01]} 52. Be8 {[%emt 0:00:04]} Bg4 {[%emt 0:00:09]} 53. Bg6 {[%emt 0:00:03]} Bf3 {[%emt 0:00:06]} 54. Bf7 {[%emt 0:00:01]} Kd3 {[%emt 0:00:04]} 55. Bxd5 {[%emt 0:00:02]} Bd1 {[%emt 0:00:15]} 56. Bf7 {[%emt 0:00:08]} Ke3 {[%emt 0:00:01]} 57. d5 {[%emt 0:00:24]} Bg4 {[%emt 0:00:05]} 58. Be6 {[%emt 0:00:08]} Bd1 {[%emt 0:00:01]} 59. d6 {[%emt 0:00:01]} Ba4 {[%emt 0:00:02]} 60. Bf7 {[%emt 0:00:07]} Kf3 {[%emt 0:00:01]} 61. Kf5 {[%emt 0:00:05]} Bd7+ {[%emt 0:00:10]} 62. Kg5 {[%emt 0:00:00]} Ke4 {[%emt 0:00:01]} 63. Kf6 {[%emt 0:00:08]} Kf4 {[%emt 0:00:00]} 64. Bxh5 {[%emt 0:00:11]} Kg3 {[%emt 0:00:01]} 65. Kg5 {[%emt 0:00:01]} 1-0